Workbook

Sheet Raw data
B1: Raw Data
C2: =COUNT(C6:C55) -> 50 | G2: =COUNT(G6:G55) -> 50
B4: Control Group | F4: Treatment Group
B5: Patient | C5: Effect | D5: Cost | F5: Patient | G5: Effect | H5: Cost
B6: 1 | C6: 5.909207344 | D6: 801.3622719 | F6: 1 | G6: 7.033344269 | H6: 1321.763171
B7: 2 | C7: 5.415548563 | D7: 951.0459198 | F7: 2 | G7: 6.162960052 | H7: 892.8598952
B8: 3 | C8: 5.800325394 | D8: 492.4647653 | F8: 3 | G8: 7.206817627 | H8: 813.7180576
B9: 4 | C9: 5.511829853 | D9: 808.3606803 | F9: 4 | G9: 7.536651611 | H9: 696.611542
B10: 5 | C10: 5.139657974 | D10: 290.8917542 | F10: 5 | G10: 4 | H10: 1019.011707
B11: 6 | C11: 5.775022507 | D11: 375.5329703 | F11: 6 | G11: 4.8 | H11: 1700.207647
B12: 7 | C12: 5.426730871 | D12: 656.9989527 | F12: 7 | G12: 6.077037811 | H12: 1457.951623
B13: 8 | C13: 6.016550064 | D13: 270.4552203 | F13: 8 | G13: 7.923934937 | H13: 591.1001389
B14: 9 | C14: 5.624522686 | D14: 326.9153189 | F14: 9 | G14: 6.302537918 | H14: 624.3058561
B15: 10 | C15: 6.875097275 | D15: 682.5174087 | F15: 10 | G15: 6.631738663 | H15: 1459.305784
B16: 11 | C16: 7.163614273 | D16: 1250.679615 | F16: 11 | G16: 7.325275421 | H16: 1676.611191
B17: 12 | C17: 5.987120152 | D17: 387.2094535 | F17: 12 | G17: 6.270088196 | H17: 539.870322
B18: 13 | C18: 7.190731049 | D18: 365.224439 | F18: 13 | G18: 7.800144196 | H18: 1706.287887
B19: 14 | C19: 5.942542553 | D19: 333.3463982 | F19: 14 | G19: 5.106017113 | H19: 790.9457191
B20: 15 | C20: 5.18457818 | D20: 769.941724 | F20: 15 | G20: 6.398813248 | H20: 526.9806161
B21: 16 | C21: 5.818914175 | D21: 587.5710893 | F21: 16 | G21: 7.291055679 | H21: 943.2144344
B22: 17 | C22: 6.635824203 | D22: 846.2368406 | F22: 17 | G22: 6.429294586 | H22: 1316.924378
B23: 18 | C23: 5.234871387 | D23: 312.7214025 | F23: 18 | G23: 6.123560905 | H23: 611.6815718
B24: 19 | C24: 5.334320545 | D24: 194.4302969 | F24: 19 | G24: 5.547208786 | H24: 762.3994949
B25: 20 | C25: 5.253729105 | D25: 311.7219243 | F25: 20 | G25: 5.454504013 | H25: 1376.149903
B26: 21 | C26: 5.656487465 | D26: 1016.05834 | F26: 21 | G26: 6.363405228 | H26: 958.5332997
B27: 22 | C27: 5.165578127 | D27: 1424.20097 | F27: 22 | G27: 5.45067215 | H27: 780.9718332
B28: 23 | C28: 6.022761345 | D28: 247.7761032 | F28: 23 | G28: 6.912416458 | H28: 810.1689506
B29: 24 | C29: 6.984348297 | D29: 283.4351452 | F29: 24 | G29: 7.21238327 | H29: 886.87876
B30: 25 | C30: 5.574762344 | D30: 917.3130463 | F30: 25 | G30: 6.68434906 | H30: 638.5988962
B31: 26 | C31: 7.211258888 | D31: 1652.972378 | F31: 26 | G31: 5.901889801 | H31: 1665.821704
B32: 27 | C32: 5.404300451 | D32: 1151.545136 | F32: 27 | G32: 5.484531403 | H32: 860.074276
B33: 28 | C33: 6.272904873 | D33: 171.2148856 | F33: 28 | G33: 6.359088898 | H33: 1385.078958
B34: 29 | C34: 6.05113554 | D34: 634.9283873 | F34: 29 | G34: 6.187994003 | H34: 750.5907653
B35: 30 | C35: 5.91305685 | D35: 152.390829 | F35: 30 | G35: 6.192615509 | H35: 593.384903
B36: 31 | C36: 6.152977943 | D36: 229.1617044 | F36: 31 | G36: 6.587087631 | H36: 929.7635232
B37: 32 | C37: 6.566431522 | D37: 403.2728149 | F37: 32 | G37: 5.436487198 | H37: 1580.037574
B38: 33 | C38: 6.092988014 | D38: 1756.990467 | F38: 33 | G38: 6.264240265 | H38: 1117.987112
B39: 34 | C39: 5.923405886 | D39: 171.2388794 | F39: 34 | G39: 7.074949265 | H39: 900.8744869
B40: 35 | C40: 6.840260029 | D40: 308.6168696 | F40: 35 | G40: 5.868963242 | H40: 629.899376
B41: 36 | C41: 7.226216316 | D41: 747.9900384 | F41: 36 | G41: 5.152415276 | H41: 456.6470022
B42: 37 | C42: 5.147778273 | D42: 317.807218 | F42: 37 | G42: 7.844085693 | H42: 693.7742481
B43: 38 | C43: 6.475798607 | D43: 272.8854649 | F43: 38 | G43: 5.075595856 | H43: 834.6300906
B44: 39 | C44: 5.8228302 | D44: 289.654271 | F44: 39 | G44: 7.15202713 | H44: 708.8892914
B45: 40 | C45: 5.532728195 | D45: 1442.735326 | F45: 40 | G45: 3.7 | H45: 296.4930307
B46: 41 | C46: 5.886168957 | D46: 286.3892564 | F46: 41 | G46: 5.34292984 | H46: 669.5723929
B47: 42 | C47: 5.416965485 | D47: 259.0258964 | F47: 42 | G47: 5.219213486 | H47: 740.2935072
B48: 43 | C48: 6.677015781 | D48: 781.4083946 | F48: 43 | G48: 7.650344849 | H48: 917.4358267
B49: 44 | C49: 6.119612694 | D49: 148.6560293 | F49: 44 | G49: 5.200241089 | H49: 517.7566682
B50: 45 | C50: 7.590930939 | D50: 215.4397066 | F50: 45 | G50: 7.239645004 | H50: 982.7522392
B51: 46 | C51: 5.06606245 | D51: 345.6724129 | F51: 46 | G51: 7.622089386 | H51: 1189.798431
B52: 47 | C52: 6.32237339 | D52: 950.4031951 | F52: 47 | G52: 6.614717484 | H52: 800.0816419
B53: 48 | C53: 6.383476257 | D53: 657.8009054 | F53: 48 | G53: 7.270711899 | H53: 1326.701121
B54: 49 | C54: 6.200014591 | D54: 204.5083522 | F54: 49 | G54: 5.796703339 | H54: 842.0186825
B55: 50 | C55: 7.055444717 | D55: 1091.045217 | F55: 50 | G55: 6.372425079 | H55: 1578.153912

Sheet Descriptive analysis
B4: Summary Statistics
D6: Control Group
B7: Statistic | D7: Effect | E7: Cost
B9: Sample Mean | D9: =AVERAGE('Raw data'!C6:C55) -> 6.039936252 | E9: =AVERAGE('Raw data'!D6:D55) -> 590.9633217
B10: Standard deviation | D10: =STDEV('Raw data'!C6:C55) -> 0.6595191269 | E10: =STDEV('Raw data'!D6:D55) -> 417.2403426
B11: Standard error | D11: =sdE0/SQRT(50) -> 0.09327008939 | E11: =sdC0/SQRT(50) -> 59.00669513
D14: Treatment Group
D15: Effect | E15: Cost
B17: Sample Mean | D17: =AVERAGE('Raw data'!G6:G55) -> 6.293104076 | E17: =AVERAGE('Raw data'!H6:H55) -> 957.4312689
B18: Standard deviation | D18: =STDEV('Raw data'!G6:G55) -> 0.9749259947 | E18: =STDEV('Raw data'!H6:H55) -> 372.0673696
B19: Standard error | D19: =_sdE1/SQRT(50) -> 0.1378753564 | E19: =_sdC1/SQRT(50) -> 52.61827201
D23: Difference
D24: Effect (DE) | E24: Cost (DC)
B26: Sample Mean | D26: =+E_1-E0 -> 0.2531678247 | E26: =+C_1-C0 -> 366.4679472
B27: Standard error | D27: =SQRT(((sdE0^2)/50)+((_sdE1^2)/50)) -> 0.1664599756 | E27: =SQRT(((sdC0^2)/50)+((_sdC1^2)/50)) -> 79.05993056
B28: Lower 95% confidence limit | D28: =+dE-NORMINV(0.975,0,1)*SEdE -> -0.07308773229 | E28: =+dC-NORMINV(0.975,0,1)*SEdC -> 211.5133306
B29: Upper 95% confidence limit | D29: =+dE+NORMINV(0.975,0,1)*SEdE -> 0.5794233818 | E29: =+dC+NORMINV(0.975,0,1)*SEdC -> 521.4225637
B30: Bootstrap lower confidence limit | D30: =+PERCENTILE(Bootstrap!S12:S1011,0.025) -> -0.07682968791 | E30: =+PERCENTILE(Bootstrap!T12:T1011,0.025) -> 222.4098639
B31: Bootstrap upper confidence limit | D31: =PERCENTILE(Bootstrap!S12:S1011,0.975) -> 0.5671094907 | E31: =+PERCENTILE(Bootstrap!T12:T1011,0.975) -> 509.0992705
B34: Correlation (C0,E0) | D34: =+CORREL('Raw data'!C6:C55,'Raw data'!D6:D55) -> 0.08394056902
B35: Correlation (C1,E1) | D35: =+CORREL('Raw data'!G6:G55,'Raw data'!H6:H55) -> 0.1549033486
B36: Correlation (DC, DE) | D36: =+(D35*D19*E19+D34*D11*E11)/(D27*E27) -> 0.1204955296
B37: Covariance (DC, DE) | D37: =+corrdCdE*SEdC*SEdE -> 1.585759018
B41: ICER: | D41: =+E26/D26 -> 1447.529707
B43: Confidence limits | D43: Lower | E43: Upper
B44: Confidence box | D44: =+u95ci_c/l95ci_e -> -7134.200875 | E44: =+l95ci_c/u95ci_e -> 365.0410689
B45: Filler's method | D45: =+(dC*dE-NORMINV(0.975,0,1)*covdCdE)-(SQRT((dC*dE-NORMINV(0.975,0,1)*covdCdE)^2-(dE^2-NORMINV(0.975,0,1)*SEdE^2)*(dC^2-NORMINV(0.975,0,1)*SEdC^2))/(dE^2-NORMINV(0.975,0,1)*SEdE^2)) -> -8366.033224 | E45: =+(dC*dE-NORMINV(0.975,0,1)*covdCdE)+(SQRT((dC*dE-NORMINV(0.975,0,1)*covdCdE)^2-(dE^2-NORMINV(0.975,0,1)*SEdE^2)*(dC^2-NORMINV(0.975,0,1)*SEdC^2))/(dE^2-NORMINV(0.975,0,1)*SEdE^2)) -> 8545.372949
B46: Bootstrap | D46: =+PERCENTILE(Bootstrap!V12:V1011,0.025) -> -7136.921677 | E46: =+PERCENTILE(Bootstrap!V12:V1011,0.975) -> 11480.21602
B47: Delta method (Taylor series) | D47: =+ICER-NORMINV(0.975,0,1)*SQRT((ICER^2)*(((SEdC^2)/dC^2)+((SEdE^2)/dE^2)-(2*covdCdE/(dE*dC)))) -> -444.3646318 | E47: =+ICER+NORMINV(0.975,0,1)*SQRT((ICER^2)*(((SEdC^2)/dC^2)+((SEdE^2)/dE^2)-(2*covdCdE/(dE*dC)))) -> 3339.424046
B49: Net benefit (as funtion of l) | D49: =+dE*lambda-dC -> 13.28378997
B50: (see value of lambda in <Bootstrap>)
B51: Confidence limits (as funtion of l) | D51: =+PERCENTILE(Bootstrap!AH12:AH1011,0.025) -> -489.2060024 | E51: =+PERCENTILE(Bootstrap!AH12:AH1011,0.975) -> 509.7138473

Sheet Bootstrap
B1: Bootstrap Results
B3: The bootstrap resamples: | J3: Bootstrapped means for the: | AB3: Threshold (l) | AC3: 1500
AB4: Prob(CE) | AC4: =+COUNTIF(AB12:AB1011,1)/1000 -> 0.563 | AN4: Prob(CE) | AO4: =+COUNTIF(AN12:AN1011,1)/1000 -> 0.563
C6: Effect | D6: Cost | G6: Effect | H6: Cost | L6: Effect | M6: Cost | P6: Effect | Q6: Cost | S6: DE | T6: DC
B7: means: | C7: =AVERAGE(C12:C62) -> 6.143975034 | D7: =AVERAGE(D12:D62) -> 542.6387502 | G7: =AVERAGE(G12:G62) -> 6.083565422 | H7: =AVERAGE(H12:H62) -> 1056.387036 | K7: means: | L7: =AVERAGE(L12:L1011) -> 6.041869028 | M7: =AVERAGE(M12:M1011) -> 593.1762963 | P7: =AVERAGE(P12:P1011) -> 6.299987353 | Q7: =AVERAGE(Q12:Q1011) -> 958.8591541 | S7: =AVERAGE(S12:S1011) -> 0.258118325 | T7: =AVERAGE(T12:T1011) -> 365.6828578 | V7: =COUNT(V12:V3011) -> 1000
AH8: Bootstrapping net benefits
B9: Control Group | F9: Treatment Group | J9: Bootstrap | L9: Control group | P9: Treatment Group | S9: Difference | V9: Ratio: | X9: Descriptive statistics for ICER | AB9: Is it cost-effective? | AE9: Threshold | AF9: Prob[CE(l)] | AH9: Net benefit | AJ9: Descriptive statistics for Net Benefit | AN9: Is it cost-effective?
B10: Patient | C10: Effect | D10: Cost | F10: Patient | G10: Effect | H10: Cost | J10: replication | L10: Effect | M10: Cost | P10: Effect | Q10: Cost | S10: Effect | T10: Cost | V10: (ICER) | AB10: (ICER vs threshold) | AN10: (NB>0)
B12: =+INT(RAND()*50)+1 -> 3 | C12: =+VLOOKUP(B12,control,2,1) -> 5.800325394 | D12: =+VLOOKUP(B12,control,3,1) -> 492.4647653 | F12: =+INT(RAND()*50)+1 -> 22 | G12: =+VLOOKUP(F12,treatment,2,1) -> 5.45067215 | H12: =+VLOOKUP(F12,treatment,3,1) -> 780.9718332 | J12: 1 | L12: 5.965111804 | M12: 631.4018789 | P12: 6.394082947 | Q12: 1047.941084 | S12: =P12-L12 -> 0.4289711428 | T12: =Q12-M12 -> 416.5392051 | V12: =+T12/S12 -> 971.0191748 | X12: Mean | Z12: =AVERAGE(V12:V1011) -> 6620.403755 | AB12: =+IF(S12<0,IF(V12<lambda,0,1),IF(V12<lambda,1,0)) -> 1 | AE12: 0 | AF12: 0 | AH12: =+S12*lambda-T12 -> 226.9175091 | AJ12: Mean | AL12: =AVERAGE(AH12:AH1011) -> 21.49462961 | AN12: =+IF(AH12>0,1,0) -> 1
B13: =+INT(RAND()*50)+1 -> 19 | C13: =+VLOOKUP(B13,control,2,1) -> 5.334320545 | D13: =+VLOOKUP(B13,control,3,1) -> 194.4302969 | F13: =+INT(RAND()*50)+1 -> 35 | G13: =+VLOOKUP(F13,treatment,2,1) -> 5.868963242 | H13: =+VLOOKUP(F13,treatment,3,1) -> 629.899376 | J13: 2 | L13: 5.898293529 | M13: 554.1668421 | P13: 6.324327034 | Q13: 822.6219348 | S13: =P13-L13 -> 0.4260335054 | T13: 268.4550927 | V13: =+T13/S13 -> 630.1267138 | X13: Median | Z13: =+MEDIAN(V12:V1011) -> 1258.665795 | AB13: 1 | AE13: 50 | AF13: 0 | AH13: =+S13*lambda-T13 -> 370.5951654 | AJ13: Median | AL13: =+MEDIAN(AH12:AH1011) -> 36.49633621 | AN13: 1
B14: 16 | C14: 5.818914175 | D14: 587.5710893 | F14: 36 | G14: 5.152415276 | H14: 456.6470022 | J14: 3 | L14: 6.087217188 | M14: 634.4416241 | P14: 6.387214809 | Q14: 986.81267 | S14: 0.2999976215 | T14: 352.3710458 | V14: 1174.579465 | X14: 2.5th percentile | Z14: =+PERCENTILE(V12:V1011,0.025) -> -7136.921677 | AB14: 1 | AE14: 100 | AF14: 0 | AH14: 97.62538646 | AJ14: 2.5th percentile | AL14: =+PERCENTILE(AH12:AH1011,0.025) -> -489.2060024 | AN14: 1
B15: 14 | C15: 5.942542553 | D15: 333.3463982 | F15: 8 | G15: 7.923934937 | H15: 591.1001389 | J15: 4 | L15: 6.006352549 | M15: 633.6834245 | P15: 6.312225582 | Q15: 1007.8408 | S15: 0.3058730335 | T15: 374.1573754 | V15: 1223.244073 | X15: 97.5th percentile | Z15: =+PERCENTILE(V12:V1011,0.975) -> 11480.21602 | AB15: 1 | AE15: 150 | AF15: 0 | AH15: 84.65217492 | AJ15: 97.5th percentile | AL15: =+PERCENTILE(AH12:AH1011,0.975) -> 509.7138473 | AN15: 1
B16: 46 | C16: 5.06606245 | D16: 345.6724129 | F16: 3 | G16: 7.206817627 | H16: 813.7180576 | J16: 5 | L16: 6.101859345 | M16: 563.4374835 | P16: 6.156198349 | Q16: 986.354073 | S16: 0.05433900356 | T16: 422.9165895 | V16: 7782.928683 | X16: min | Z16: =+MIN(V12:V1011) -> -130074.6836 | AB16: 0 | AE16: 200 | AF16: 0 | AH16: -341.4080841 | AJ16: min | AL16: =+MIN(AH12:AH1011) -> -788.8128927 | AN16: 0
B17: 13 | C17: 7.190731049 | D17: 365.224439 | F17: 2 | G17: 6.162960052 | H17: 892.8598952 | J17: 6 | L17: 6.082845116 | M17: 619.2452561 | P17: 6.324435162 | Q17: 999.775472 | S17: 0.2415900459 | T17: 380.530216 | V17: 1575.10718 | X17: max | Z17: =+MAX(V12:V1011) -> 4640157.9 | AB17: 0 | AE17: 250 | AF17: 0 | AH17: -18.14514708 | AJ17: max | AL17: =+MAX(AH12:AH1011) -> 824.3736307 | AN17: 0
B18: 50 | C18: 7.055444717 | D18: 1091.045217 | F18: 6 | G18: 4.8 | H18: 1700.207647 | J18: 7 | L18: 6.06849906 | M18: 526.8931224 | P18: 6.154185848 | Q18: 987.9066677 | S18: 0.08568678856 | T18: 461.0135454 | V18: 5380.217337 | AB18: 0 | AE18: 300 | AF18: 0 | AH18: -332.4833625 | AN18: 0
B19: 22 | C19: 5.165578127 | D19: 1424.20097 | F19: 31 | G19: 6.587087631 | H19: 929.7635232 | J19: 8 | L19: 6.048377771 | M19: 530.4331588 | P19: 6.159752365 | Q19: 934.5822324 | S19: 0.1113745937 | T19: 404.1490735 | V19: 3628.73668 | AB19: 0 | AE19: 350 | AF19: 0 | AH19: -237.0871829 | AN19: 0
B20: 46 | C20: 5.06606245 | D20: 345.6724129 | F20: 28 | G20: 6.359088898 | H20: 1385.078958 | J20: 9 | L20: 6.067766123 | M20: 505.5403932 | P20: 6.592369026 | Q20: 879.7507911 | S20: 0.5246029034 | T20: 374.210398 | V20: 713.3212484 | AB20: 1 | AE20: 400 | AF20: 0 | AH20: 412.6939571 | AN20: 1
B21: 12 | C21: 5.987120152 | D21: 387.2094535 | F21: 17 | G21: 6.429294586 | H21: 1316.924378 | J21: 10 | L21: 6.125550904 | M21: 542.1516111 | P21: 6.580641975 | Q21: 994.8368534 | S21: 0.4550910711 | T21: 452.6852423 | V21: 994.7135223 | X21: Bin Range | Y21: Bin | Z21: Frequency | AB21: 1 | AE21: 450 | AF21: 0.005 | AH21: 229.9513644 | AJ21: Bin Range | AK21: Bin | AL21: Frequency | AN21: 1
B22: 45 | C22: 7.590930939 | D22: 215.4397066 | F22: 11 | G22: 7.325275421 | H22: 1676.611191 | J22: 11 | L22: 6.055640035 | M22: 648.2585887 | P22: 6.195496521 | Q22: 924.0276345 | S22: 0.1398564863 | T22: 275.7690458 | V22: 1971.800186 | X22: -15000 | Y22: -20000 | Z22: =FREQUENCY(V12:V1011,Y22:Y62) -> 4 | AB22: 0 | AE22: 500 | AF22: 0.009 | AH22: -65.98431629 | AJ22: 1000 | AK22: 1000 | AL22: =FREQUENCY(AH12:AH1011,AK22:AK62) -> 0 | AN22: 0
B23: 1 | C23: 5.909207344 | D23: 801.3622719 | F23: 31 | G23: 6.587087631 | H23: 929.7635232 | J23: 12 | L23: 6.165112185 | M23: 576.065138 | P23: 6.088382202 | Q23: 1020.18805 | S23: -0.07672998333 | T23: 444.1229119 | V23: -5788.127309 | X23: =+X22+500 -> -14500 | Y23: -19000 | Z23: 0 | AB23: 0 | AE23: 550 | AF23: 0.021 | AH23: -559.2178869 | AJ23: =+AJ22-50 -> 950 | AK23: 950 | AL23: 0 | AN23: 0
B24: 11 | C24: 7.163614273 | D24: 1250.679615 | F24: 28 | G24: 6.359088898 | H24: 1385.078958 | J24: 13 | L24: 6.019276648 | M24: 639.6744172 | P24: 6.417338772 | Q24: 947.5790687 | S24: 0.3980621243 | T24: 307.9046514 | V24: 773.5090396 | X24: =+X23+500 -> -14000 | Y24: -18000 | Z24: 0 | AB24: 1 | AE24: 600 | AF24: 0.028 | AH24: 289.188535 | AJ24: =+AJ23-50 -> 900 | AK24: 900 | AL24: 0 | AN24: 1
B25: 23 | C25: 6.022761345 | D25: 247.7761032 | F25: 28 | G25: 6.359088898 | H25: 1385.078958 | J25: 14 | L25: 5.86602262 | M25: 607.3828592 | P25: 6.179099049 | Q25: 921.3626364 | S25: 0.3130764284 | T25: 313.9797772 | V25: 1002.885394 | X25: -13500 | Y25: -17000 | Z25: 0 | AB25: 1 | AE25: 650 | AF25: 0.046 | AH25: 155.6348654 | AJ25: 850 | AK25: 850 | AL25: 1 | AN25: 1
B26: 45 | C26: 7.590930939 | D26: 215.4397066 | F26: 36 | G26: 5.152415276 | H26: 456.6470022 | J26: 15 | L26: 5.952257657 | M26: 513.5041584 | P26: 6.325637249 | Q26: 962.0030773 | S26: 0.3733795919 | T26: 448.4989189 | V26: 1201.187554 | X26: -13000 | Y26: -16000 | Z26: 2 | AB26: 1 | AE26: 700 | AF26: 0.062 | AH26: 111.570469 | AJ26: 800 | AK26: 800 | AL26: 1 | AN26: 1
B27: 47 | C27: 6.32237339 | D27: 950.4031951 | F27: 19 | G27: 5.547208786 | H27: 762.3994949 | J27: 16 | L27: 6.125809298 | M27: 550.0611071 | P27: 6.299598484 | Q27: 934.6644404 | S27: 0.1737891865 | T27: 384.6033334 | V27: 2213.045248 | X27: -12500 | Y27: -15000 | Z27: 2 | AB27: 0 | AE27: 750 | AF27: 0.084 | AH27: -123.9195536 | AJ27: 750 | AK27: 750 | AL27: 1 | AN27: 0
B28: 5 | C28: 5.139657974 | D28: 290.8917542 | F28: 29 | G28: 6.187994003 | H28: 750.5907653 | J28: 17 | L28: 6.013112016 | M28: 546.3335846 | P28: 6.192929779 | Q28: 955.7411314 | S28: 0.1798177633 | T28: 409.4075469 | V28: 2276.791454 | X28: -12000 | Y28: -14000 | Z28: 0 | AB28: 0 | AE28: 800 | AF28: 0.125 | AH28: -139.6809019 | AJ28: 700 | AK28: 700 | AL28: 4 | AN28: 0
B29: 1 | C29: 5.909207344 | D29: 801.3622719 | F29: 41 | G29: 5.34292984 | H29: 669.5723929 | J29: 18 | L29: 5.816370053 | M29: 576.2592452 | P29: 6.35032085 | Q29: 936.8323579 | S29: 0.5339507971 | T29: 360.5731127 | V29: 675.2927697 | X29: -11500 | Y29: -13000 | Z29: 2 | AB29: 1 | AE29: 850 | AF29: 0.157 | AH29: 440.353083 | AJ29: 650 | AK29: 650 | AL29: 6 | AN29: 1
B30: 29 | C30: 6.05113554 | D30: 634.9283873 | F30: 11 | G30: 7.325275421 | H30: 1676.611191 | J30: 19 | L30: 6.096948929 | M30: 568.2730978 | P30: 6.177394882 | Q30: 903.9850369 | S30: 0.08044595337 | T30: 335.7119391 | V30: 4173.136435 | X30: -11000 | Y30: -12000 | Z30: 1 | AB30: 0 | AE30: 900 | AF30: 0.184 | AH30: -215.043009 | AJ30: 600 | AK30: 600 | AL30: 6 | AN30: 0
B31: 34 | C31: 5.923405886 | D31: 171.2388794 | F31: 28 | G31: 6.359088898 | H31: 1385.078958 | J31: 20 | L31: 5.986267409 | M31: 577.598832 | P31: 6.319503262 | Q31: 1033.563411 | S31: 0.3332358522 | T31: 455.9645787 | V31: 1368.293884 | X31: -10500 | Y31: -11000 | Z31: 1 | AB31: 1 | AE31: 950 | AF31: 0.22 | AH31: 43.88919965 | AJ31: 550 | AK31: 550 | AL31: 11 | AN31: 1
B32: 42 | C32: 5.416965485 | D32: 259.0258964 | F32: 17 | G32: 6.429294586 | H32: 1316.924378 | J32: 21 | L32: 6.199210773 | M32: 671.5909861 | P32: 6.09889185 | Q32: 844.1182467 | S32: -0.100318923 | T32: 172.5272606 | V32: -1719.787807 | X32: -10000 | Y32: -10000 | Z32: 3 | AB32: 0 | AE32: 1000 | AF32: 0.253 | AH32: -323.0056451 | AJ32: 500 | AK32: 500 | AL32: 7 | AN32: 0
B33: 45 | C33: 7.590930939 | D33: 215.4397066 | F33: 20 | G33: 5.454504013 | H33: 1376.149903 | J33: 22 | L33: 6.021020784 | M33: 501.9691452 | P33: 6.416242104 | Q33: 941.0656818 | S33: 0.3952213192 | T33: 439.0965365 | V33: 1111.014298 | X33: -9500 | Y33: -9000 | Z33: 3 | AB33: 1 | AE33: 1050 | AF33: 0.281 | AH33: 153.7354423 | AJ33: 450 | AK33: 450 | AL33: 22 | AN33: 1
B34: 4 | C34: 5.511829853 | D34: 808.3606803 | F34: 9 | G34: 6.302537918 | H34: 624.3058561 | J34: 23 | L34: 6.050407782 | M34: 691.4044344 | P34: 6.375610653 | Q34: 1037.782349 | S34: 0.3252028713 | T34: 346.3779149 | V34: 1065.113335 | X34: -9000 | Y34: -8000 | Z34: 4 | AB34: 1 | AE34: 1100 | AF34: 0.325 | AH34: 141.426392 | AJ34: 400 | AK34: 400 | AL34: 25 | AN34: 1
B35: 26 | C35: 7.211258888 | D35: 1652.972378 | F35: 31 | G35: 6.587087631 | H35: 929.7635232 | J35: 24 | L35: 6.119170351 | M35: 449.4401324 | P35: 6.223211716 | Q35: 1008.375466 | S35: 0.1040413647 | T35: 558.9353333 | V35: 5372.241464 | X35: -8500 | Y35: -7000 | Z35: 4 | AB35: 0 | AE35: 1150 | AF35: 0.36 | AH35: -402.8732863 | AJ35: 350 | AK35: 350 | AL35: 36 | AN35: 0
B36: 49 | C36: 6.200014591 | D36: 204.5083522 | F36: 14 | G36: 5.106017113 | H36: 790.9457191 | J36: 25 | L36: 6.062466865 | M36: 612.9780159 | P36: 6.412920403 | Q36: 964.4335656 | S36: 0.3504535379 | T36: 351.4555497 | V36: 1002.859186 | X36: -8000 | Y36: -6000 | Z36: 3 | AB36: 1 | AE36: 1200 | AF36: 0.394 | AH36: 174.2247572 | AJ36: 300 | AK36: 300 | AL36: 45 | AN36: 1
B37: 11 | C37: 7.163614273 | D37: 1250.679615 | F37: 7 | G37: 6.077037811 | H37: 1457.951623 | J37: 26 | L37: 5.983933158 | M37: 504.6707743 | P37: 6.30060215 | Q37: 919.6999667 | S37: 0.316668992 | T37: 415.0291925 | V37: 1310.608878 | X37: -7500 | Y37: -5000 | Z37: 5 | AB37: 1 | AE37: 1250 | AF37: 0.419 | AH37: 59.97429561 | AJ37: 250 | AK37: 250 | AL37: 51 | AN37: 1
B38: 18 | C38: 5.234871387 | D38: 312.7214025 | F38: 28 | G38: 6.359088898 | H38: 1385.078958 | J38: 27 | L38: 5.898027511 | M38: 537.6096076 | P38: 6.304300022 | Q38: 927.9706335 | S38: 0.4062725115 | T38: 390.3610259 | V38: 960.8354364 | X38: -7000 | Y38: -4000 | Z38: 7 | AB38: 1 | AE38: 1300 | AF38: 0.45 | AH38: 219.0477414 | AJ38: 200 | AK38: 200 | AL38: 81 | AN38: 1
B39: 25 | C39: 5.574762344 | D39: 917.3130463 | F39: 27 | G39: 5.484531403 | H39: 860.074276 | J39: 28 | L39: 5.950488172 | M39: 521.7688784 | P39: 5.96547908 | Q39: 1018.078787 | S39: 0.01499090862 | T39: 496.3099086 | V39: 33107.39336 | X39: -6500 | Y39: -3000 | Z39: 5 | AB39: 0 | AE39: 1350 | AF39: 0.468 | AH39: -473.8235457 | AJ39: 150 | AK39: 150 | AL39: 86 | AN39: 0
B40: 28 | C40: 6.272904873 | D40: 171.2148856 | F40: 27 | G40: 5.484531403 | H40: 860.074276 | J40: 29 | L40: 5.960094628 | M40: 685.0732849 | P40: 6.324831116 | Q40: 918.1276067 | S40: 0.3647364874 | T40: 233.0543218 | V40: 638.9662944 | X40: -6000 | Y40: -2000 | Z40: 6 | AB40: 1 | AE40: 1400 | AF40: 0.489 | AH40: 314.0504093 | AJ40: 100 | AK40: 100 | AL40: 92 | AN40: 1
B41: 38 | C41: 6.475798607 | D41: 272.8854649 | F41: 33 | G41: 6.264240265 | H41: 1117.987112 | J41: 30 | L41: 5.978234916 | M41: 533.5752435 | P41: 6.339099937 | Q41: 1036.702521 | S41: 0.3608650217 | T41: 503.127278 | V41: 1394.225674 | X41: -5500 | Y41: -1000 | Z41: 12 | AB41: 1 | AE41: 1450 | AF41: 0.513 | AH41: 38.17025454 | AJ41: 50 | AK41: 50 | AL41: 88 | AN41: 1
B42: 32 | C42: 6.566431522 | D42: 403.2728149 | F42: 48 | G42: 7.270711899 | H42: 1326.701121 | J42: 31 | L42: 5.964827518 | M42: 535.9955471 | P42: 6.211396317 | Q42: 1009.265898 | S42: 0.2465687981 | T42: 473.2703509 | V42: 1919.425145 | X42: -5000 | Y42: 0 | Z42: 0 | AB42: 0 | AE42: 1500 | AF42: 0.535 | AH42: -103.4171538 | AJ42: 0 | AK42: 0 | AL42: 71 | AN42: 0
B43: 43 | C43: 6.677015781 | D43: 781.4083946 | F43: 26 | G43: 5.901889801 | H43: 1665.821704 | J43: 32 | L43: 6.011022811 | M43: 590.9773192 | P43: 6.146436821 | Q43: 975.3953615 | S43: 0.13541401 | T43: 384.4180423 | V43: 2838.835082 | X43: -4500 | Y43: 1000 | Z43: 249 | AB43: 0 | AE43: 1550 | AF43: 0.549 | AH43: -181.2970272 | AJ43: -50 | AK43: -50 | AL43: 66 | AN43: 0
B44: 32 | C44: 6.566431522 | D44: 403.2728149 | F44: 14 | G44: 5.106017113 | H44: 790.9457191 | J44: 33 | L44: 5.91980423 | M44: 611.1936989 | P44: 6.284607639 | Q44: 927.7215567 | S44: 0.3648034096 | T44: 316.5278577 | V44: 867.666939 | X44: -4000 | Y44: 2000 | Z44: 450 | AB44: 1 | AE44: 1600 | AF44: 0.57 | AH44: 230.6772567 | AJ44: -100 | AK44: -100 | AL44: 60 | AN44: 1
B45: 7 | C45: 5.426730871 | D45: 656.9989527 | F45: 6 | G45: 4.8 | H45: 1700.207647 | J45: 34 | L45: 5.967192812 | M45: 565.997959 | P45: 6.427912617 | Q45: 1009.865896 | S45: 0.4607198048 | T45: 443.8679367 | V45: 963.42274 | X45: -3500 | Y45: 3000 | Z45: 106 | AB45: 1 | AE45: 1650 | AF45: 0.582 | AH45: 247.2117705 | AJ45: -150 | AK45: -150 | AL45: 54 | AN45: 1
B46: 38 | C46: 6.475798607 | D46: 272.8854649 | F46: 44 | G46: 5.200241089 | H46: 517.7566682 | J46: 35 | L46: 6.043457313 | M46: 613.2544046 | P46: 6.101761414 | Q46: 1004.982427 | S46: 0.05830410099 | T46: 391.7280228 | V46: 6718.70445 | X46: -3000 | Y46: 4000 | Z46: 41 | AB46: 0 | AE46: 1700 | AF46: 0.595 | AH46: -304.2718713 | AJ46: -200 | AK46: -200 | AL46: 43 | AN46: 0
B47: 9 | C47: 5.624522686 | D47: 326.9153189 | F47: 2 | G47: 6.162960052 | H47: 892.8598952 | J47: 36 | L47: 6.262420311 | M47: 605.4716057 | P47: 6.229184193 | Q47: 1016.394858 | S47: -0.03323611832 | T47: 410.923252 | V47: -12363.75584 | X47: -2500 | Y47: 5000 | Z47: 16 | AB47: 0 | AE47: 1750 | AF47: 0.61 | AH47: -460.7774295 | AJ47: -250 | AK47: -250 | AL47: 43 | AN47: 0
B48: 10 | C48: 6.875097275 | D48: 682.5174087 | F48: 32 | G48: 5.436487198 | H48: 1580.037574 | J48: 37 | L48: 5.998478956 | M48: 485.1260684 | P48: 6.202114552 | Q48: 905.6955908 | S48: 0.2036355953 | T48: 420.5695224 | V48: 2065.304554 | X48: -2000 | Y48: 6000 | Z48: 12 | AB48: 0 | AE48: 1800 | AF48: 0.623 | AH48: -115.1161294 | AJ48: -300 | AK48: -300 | AL48: 34 | AN48: 0
B49: 49 | C49: 6.200014591 | D49: 204.5083522 | F49: 43 | G49: 7.650344849 | H49: 917.4358267 | J49: 38 | L49: 5.97839891 | M49: 555.7119332 | P49: 6.354044914 | Q49: 974.0109332 | S49: 0.3756460047 | T49: 418.299 | V49: 1113.545718 | X49: -1500 | Y49: 7000 | Z49: 14 | AB49: 1 | AE49: 1850 | AF49: 0.638 | AH49: 145.170007 | AJ49: -350 | AK49: -350 | AL49: 16 | AN49: 1
B50: 8 | C50: 6.016550064 | D50: 270.4552203 | F50: 12 | G50: 6.270088196 | H50: 539.870322 | J50: 39 | L50: 6.271811748 | M50: 565.7071368 | P50: 6.278771381 | Q50: 935.9086406 | S50: 0.006959633827 | T50: 370.2015038 | V50: 53192.66976 | X50: -1000 | Y50: 8000 | Z50: 11 | AB50: 0 | AE50: 1900 | AF50: 0.652 | AH50: -359.7620531 | AJ50: -400 | AK50: -400 | AL50: 15 | AN50: 0
B51: 23 | C51: 6.022761345 | D51: 247.7761032 | F51: 11 | G51: 7.325275421 | H51: 1676.611191 | J51: 40 | L51: 6.011745734 | M51: 665.7524723 | P51: 6.365118294 | Q51: 951.8987439 | S51: 0.3533725595 | T51: 286.1462716 | V51: 809.758041 | X51: -500 | Y51: 9000 | Z51: 4 | AB51: 1 | AE51: 1950 | AF51: 0.662 | AH51: 243.9125677 | AJ51: -450 | AK51: -450 | AL51: 10 | AN51: 1
B52: 28 | C52: 6.272904873 | D52: 171.2148856 | F52: 26 | G52: 5.901889801 | H52: 1665.821704 | J52: 41 | L52: 6.049535599 | M52: 609.3716325 | P52: 6.346466217 | Q52: 900.9009309 | S52: 0.2969306183 | T52: 291.5292984 | V52: 981.8094883 | X52: 0 | Y52: 10000 | Z52: 5 | AB52: 1 | AE52: 2000 | AF52: 0.671 | AH52: 153.866629 | AJ52: -500 | AK52: -500 | AL52: 9 | AN52: 1
B53: 47 | C53: 6.32237339 | D53: 950.4031951 | F53: 31 | G53: 6.587087631 | H53: 929.7635232 | J53: 42 | L53: 6.018992891 | M53: 708.7477977 | P53: 6.074914768 | Q53: 961.6636648 | S53: 0.05592187691 | T53: 252.9158671 | V53: 4522.664136 | X53: 500 | Y53: 11000 | Z53: 2 | AB53: 0 | AE53: 2050 | AF53: 0.678 | AH53: -169.0330517 | AJ53: -550 | AK53: -550 | AL53: 6 | AN53: 0
B54: 12 | C54: 5.987120152 | D54: 387.2094535 | F54: 21 | G54: 6.363405228 | H54: 958.5332997 | J54: 43 | L54: 6.039736552 | M54: 585.2813968 | P54: 6.489095188 | Q54: 953.5000451 | S54: 0.4493586359 | T54: 368.2186484 | V54: 819.4315608 | X54: 1000 | Y54: 12000 | Z54: 1 | AB54: 1 | AE54: 2100 | AF54: 0.69 | AH54: 305.8193055 | AJ54: -600 | AK54: -600 | AL54: 3 | AN54: 1
B55: 14 | C55: 5.942542553 | D55: 333.3463982 | F55: 46 | G55: 7.622089386 | H55: 1189.798431 | J55: 44 | L55: 6.115070548 | M55: 656.4194853 | P55: 6.435268368 | Q55: 926.3126571 | S55: 0.3201978197 | T55: 269.8931718 | V55: 842.8950955 | X55: 1500 | Y55: 13000 | Z55: 2 | AB55: 1 | AE55: 2150 | AF55: 0.698 | AH55: 210.4035577 | AJ55: -650 | AK55: -650 | AL55: 5 | AN55: 1
B56: 4 | C56: 5.511829853 | D56: 808.3606803 | F56: 40 | G56: 3.7 | H56: 296.4930307 | J56: 45 | L56: 6.088265982 | M56: 530.0872964 | P56: 6.352743473 | Q56: 989.8768562 | S56: 0.2644774914 | T56: 459.7895597 | V56: 1738.482762 | X56: 2000 | Y56: 14000 | Z56: 3 | AB56: 0 | AE56: 2200 | AF56: 0.704 | AH56: -63.07332267 | AJ56: -700 | AK56: -700 | AL56: 1 | AN56: 0
B57: 12 | C57: 5.987120152 | D57: 387.2094535 | F57: 19 | G57: 5.547208786 | H57: 762.3994949 | J57: 46 | L57: 6.094667621 | M57: 491.9008197 | P57: 6.385643177 | Q57: 991.2121685 | S57: 0.2909755564 | T57: 499.3113488 | V57: 1715.9907 | X57: 2500 | Y57: 15000 | Z57: 1 | AB57: 0 | AE57: 2250 | AF57: 0.712 | AH57: -62.84801423 | AJ57: -750 | AK57: -750 | AL57: 1 | AN57: 0
B58: 37 | C58: 5.147778273 | D58: 317.807218 | F58: 42 | G58: 5.219213486 | H58: 740.2935072 | J58: 47 | L58: 6.08144423 | M58: 646.1348227 | P58: 6.193268562 | Q58: 958.0589433 | S58: 0.1118243322 | T58: 311.9241206 | V58: 2789.411878 | X58: 3000 | Y58: 16000 | Z58: 1 | AB58: 0 | AE58: 2300 | AF58: 0.721 | AH58: -144.1876222 | AJ58: -800 | AK58: -800 | AL58: 0 | AN58: 0
B59: 41 | C59: 5.886168957 | D59: 286.3892564 | F59: 17 | G59: 6.429294586 | H59: 1316.924378 | J59: 48 | L59: 6.059656167 | M59: 637.8860728 | P59: 6.321905384 | Q59: 988.550205 | S59: 0.262249217 | T59: 350.6641322 | V59: 1337.140817 | X59: 3500 | Y59: 17000 | Z59: 2 | AB59: 1 | AE59: 2350 | AF59: 0.725 | AH59: 42.70969332 | AJ59: -850 | AK59: -850 | AL59: 0 | AN59: 1
B60: 6 | C60: 5.775022507 | D60: 375.5329703 | F60: 42 | G60: 5.219213486 | H60: 740.2935072 | J60: 49 | L60: 6.089096751 | M60: 673.3394641 | P60: 6.259504566 | Q60: 950.0007055 | S60: 0.170407815 | T60: 276.6612413 | V60: 1623.524375 | X60: 4000 | Y60: 18000 | Z60: 0 | AB60: 0 | AE60: 2400 | AF60: 0.733 | AH60: -21.04951885 | AJ60: -900 | AK60: -900 | AL60: 0 | AN60: 0
B61: 26 | C61: 7.211258888 | D61: 1652.972378 | F61: 17 | G61: 6.429294586 | H61: 1316.924378 | J61: 50 | L61: 6.085143948 | M61: 571.7825332 | P61: 6.197222622 | Q61: 969.393212 | S61: 0.1120786743 | T61: 397.6106788 | V61: 3547.603335 | X61: 4500 | Y61: 19000 | Z61: 0 | AB61: 0 | AE61: 2450 | AF61: 0.738 | AH61: -229.4926673 | AJ61: -950 | AK61: -950 | AL61: 0 | AN61: 0
J62: 51 | L62: 6.218824873 | M62: 634.6797861 | P62: 6.063463928 | Q62: 1060.832298 | S62: -0.1553609447 | T62: 426.1525121 | V62: -2742.983527 | X62: 5000 | Y62: 20000 | Z62: 0 | AB62: 0 | AE62: 2500 | AF62: 0.743 | AH62: -659.1939293 | AJ62: -1000 | AK62: -1000 | AL62: 0 | AN62: 0
J63: 52 | L63: 5.878573527 | M63: 621.3140763 | P63: 6.296315376 | Q63: 959.1743694 | S63: 0.4177418489 | T63: 337.8602931 | V63: 808.7777032 | Y63: More | Z63: 16 | AB63: 1 | AE63: 2550 | AF63: 0.751 | AH63: 288.7524803 | AK63: More | AL63: 0 | AN63: 1
J64: 53 | L64: 6.101791553 | M64: 656.0142443 | P64: 6.135804417 | Q64: 899.4094307 | S64: 0.03401286316 | T64: 243.3951863 | V64: 7155.974644 | AB64: 0 | AE64: 2600 | AF64: 0.756 | AH64: -192.3758916 | AN64: 0
J65: 54 | L65: 6.07210917 | M65: 633.3692557 | P65: 6.290288807 | Q65: 940.7377203 | S65: 0.218179637 | T65: 307.3684646 | V65: 1408.786213 | AB65: 1 | AE65: 2650 | AF65: 0.76 | AH65: 19.90099083 | AN65: 1
J66: 55 | L66: 5.969311242 | M66: 592.287754 | P66: 6.458898945 | Q66: 953.2259474 | S66: 0.4895877028 | T66: 360.9381934 | V66: 737.2288793 | AB66: 1 | AE66: 2700 | AF66: 0.763 | AH66: 373.4433607 | AN66: 1
J67: 56 | L67: 6.158356524 | M67: 662.8620729 | P67: 6.329366211 | Q67: 952.31125 | S67: 0.1710096874 | T67: 289.449177 | V67: 1692.589358 | AB67: 0 | AE67: 2750 | AF67: 0.765 | AH67: -32.93464589 | AN67: 0
J68: 57 | L68: 6.11632462 | M68: 593.5763734 | P68: 6.334185101 | Q68: 996.0666765 | S68: 0.2178604803 | T68: 402.4903031 | V68: 1847.468171 | AB68: 0 | AE68: 2800 | AF68: 0.77 | AH68: -75.69958264 | AN68: 0
J69: 58 | L69: 6.001906676 | M69: 535.5247146 | P69: 6.384247761 | Q69: 928.2495952 | S69: 0.3823410845 | T69: 392.7248806 | V69: 1027.158463 | AB69: 1 | AE69: 2850 | AF69: 0.773 | AH69: 180.7867461 | AN69: 1
J70: 59 | L70: 6.086535492 | M70: 631.4197813 | P70: 6.460345112 | Q70: 958.2076011 | S70: 0.3738096199 | T70: 326.7878199 | V70: 874.2092297 | AB70: 1 | AE70: 2900 | AF70: 0.778 | AH70: 233.92661 | AN70: 1
J71: 60 | L71: 5.983250217 | M71: 564.7255334 | P71: 6.323263878 | Q71: 950.7619917 | S71: 0.3400136604 | T71: 386.0364583 | V71: 1135.355732 | AB71: 1 | AE71: 2950 | AF71: 0.78 | AH71: 123.9840324 | AN71: 1
J72: 61 | L72: 6.178333817 | M72: 664.8129856 | P72: 6.329282036 | Q72: 1034.645212 | S72: 0.1509482193 | T72: 369.8322266 | V72: 2450.060215 | AB72: 0 | AE72: 3000 | AF72: 0.784 | AH72: -143.4098977 | AN72: 0
J73: 62 | L73: 6.059305835 | M73: 617.0189882 | P73: 6.265735249 | Q73: 918.4790998 | S73: 0.2064294138 | T73: 301.4601116 | V73: 1460.354443 | AB73: 1 | AE73: 3050 | AF73: 0.789 | AH73: 8.184009118 | AN73: 1
J74: 63 | L74: 6.113976507 | M74: 669.8461794 | P74: 6.38400568 | Q74: 906.7625368 | S74: 0.2700291729 | T74: 236.9163574 | V74: 877.373192 | AB74: 1 | AE74: 3100 | AF74: 0.797 | AH74: 168.127402 | AN74: 1
J75: 64 | L75: 5.957277708 | M75: 510.2088838 | P75: 6.44158218 | Q75: 965.6230585 | S75: 0.484304472 | T75: 455.4141747 | V75: 940.3468294 | AB75: 1 | AE75: 3150 | AF75: 0.8 | AH75: 271.0425333 | AN75: 1
J76: 65 | L76: 6.05854805 | M76: 640.1240574 | P76: 6.449258709 | Q76: 950.5148022 | S76: 0.390710659 | T76: =Q76-M76 -> 310.3907448 | V76: 794.4260993 | AB76: =+IF(S76<0,IF(V76<lambda,0,1),IF(V76<lambda,1,0)) -> 1 | AE76: 3200 | AF76: 0.801 | AH76: 275.6752437 | AN76: =+IF(AH76>0,1,0) -> 1
J77: 66 | L77: 6.038797278 | M77: 615.4778471 | P77: 6.460863644 | Q77: 963.5075689 | S77: =P77-L77 -> 0.4220663652 | T77: 348.0297218 | V77: =+T77/S77 -> 824.5853033 | AB77: 1 | AE77: 3250 | AF77: 0.804 | AH77: =+S77*lambda-T77 -> 285.0698261 | AN77: 1
J78: 67 | L78: 6.116269703 | M78: 582.0971262 | P78: 6.410815411 | Q78: 913.6878172 | S78: 0.2945457077 | T78: 331.5906911 | V78: 1125.769897 | AB78: 1 | AE78: 3300 | AF78: 0.809 | AH78: 110.2278705 | AN78: 1
J79: 68 | L79: 6.009965949 | M79: 628.1347528 | P79: 6.383803448 | Q79: 998.0872332 | S79: 0.3738374987 | T79: 369.9524804 | V79: 989.6077353 | AB79: 1 | AE79: 3350 | AF79: 0.811 | AH79: 190.8037676 | AN79: 1
J80: 69 | L80: 6.095416021 | M80: 628.4972471 | P80: 6.328661137 | Q80: 970.5419694 | S80: 0.2332451153 | T80: 342.0447223 | V80: 1466.460388 | AB80: 1 | AE80: 3400 | AF80: 0.814 | AH80: 7.822950655 | AN80: 1
J81: 70 | L81: 6.108625278 | M81: 658.3004989 | P81: 6.410020226 | Q81: 919.1047761 | S81: 0.3013949471 | T81: 260.8042772 | V81: 865.3239869 | AB81: 1 | AE81: 3450 | AF81: 0.818 | AH81: 191.2881434 | AN81: 1
J82: 71 | L82: 5.928225722 | M82: 572.8907414 | P82: 6.302265186 | Q82: 954.9344217 | S82: 0.374039464 | T82: 382.0436803 | V82: 1021.39939 | AB82: 1 | AE82: 3500 | AF82: 0.819 | AH82: 179.0155157 | AN82: 1
J83: 72 | L83: 5.998386474 | M83: 654.0571692 | P83: 6.072010277 | Q83: 936.9388031 | S83: 0.07362380314 | T83: 282.8816339 | V83: 3842.257828 | AB83: 0 | AE83: 3550 | AF83: 0.822 | AH83: -172.4459292 | AN83: 0
J84: 73 | L84: 6.142373919 | M84: 605.811001 | P84: 6.115212048 | Q84: 909.5781662 | S84: -0.02716187191 | T84: 303.7671651 | V84: -11183.58728 | AB84: 0 | AE84: 3600 | AF84: 0.826 | AH84: -344.509973 | AN84: 0
J85: 74 | L85: 6.047135572 | M85: 568.4387131 | P85: 6.363338909 | Q85: 1019.678342 | S85: 0.3162033367 | T85: 451.2396285 | V85: 1427.05524 | AB85: 1 | AE85: 3650 | AF85: 0.833 | AH85: 23.06537661 | AN85: 1
J86: 75 | L86: 6.057174373 | M86: 539.6965048 | P86: 6.297345772 | Q86: 1042.427274 | S86: 0.2401713991 | T86: 502.730769 | V86: 2093.21664 | AB86: 0 | AE86: 3700 | AF86: 0.833 | AH86: -142.4736703 | AN86: 0
J87: 76 | L87: 6.153210015 | M87: 630.2401287 | P87: 6.298874615 | Q87: 946.7322478 | S87: 0.1456645994 | T87: 316.492119 | V87: 2172.745611 | AB87: 0 | AE87: 3750 | AF87: 0.837 | AH87: -97.99521992 | AN87: 0
J88: 77 | L88: 5.970531096 | M88: 610.2819274 | P88: 6.320704243 | Q88: 854.0957986 | S88: 0.3501731462 | T88: 243.8138712 | V88: 696.2666151 | AB88: 1 | AE88: 3800 | AF88: 0.837 | AH88: 281.4458481 | AN88: 1
J89: 78 | L89: 6.074876523 | M89: 611.5568317 | P89: 6.226576866 | Q89: 1032.686511 | S89: 0.1517003431 | T89: 421.1296797 | V89: 2776.062802 | AB89: 0 | AE89: 3850 | AF89: 0.838 | AH89: -193.579165 | AN89: 0
J90: 79 | L90: 6.15478744 | M90: 552.3013375 | P90: 6.327203011 | Q90: 896.2665468 | S90: 0.1724155703 | T90: 343.9652093 | V90: 1994.977651 | AB90: 0 | AE90: 3900 | AF90: 0.84 | AH90: -85.34185389 | AN90: 0
J91: 80 | L91: 5.90270514 | M91: 498.2280847 | P91: 6.376632675 | Q91: 967.5465391 | S91: 0.4739275351 | T91: 469.3184544 | V91: 990.2747144 | AB91: 1 | AE91: 3950 | AF91: 0.842 | AH91: 241.5728481 | AN91: 1
J92: 81 | L92: 6.094556971 | M92: 577.0926409 | P92: 6.106583981 | Q92: 934.4823901 | S92: 0.01202700996 | T92: 357.3897492 | V92: 29715.59434 | AB92: 0 | AE92: 4000 | AF92: 0.845 | AH92: -339.3492343 | AN92: 0
J93: 82 | L93: 6.135585041 | M93: 656.328372 | P93: 6.045384537 | Q93: 954.0647033 | S93: -0.0902005043 | T93: 297.7363313 | V93: -3300.82779 | AB93: 0 | AE93: 4050 | AF93: 0.848 | AH93: -433.0370877 | AN93: 0
J94: 83 | L94: 6.012735777 | M94: 551.969483 | P94: 6.282315659 | Q94: 1047.568008 | S94: 0.2695798817 | T94: 495.5985254 | V94: 1838.41065 | AB94: 0 | AE94: 4100 | AF94: 0.849 | AH94: -91.22870295 | AN94: 0
J95: 84 | L95: 5.977703452 | M95: 594.0579709 | P95: 6.374597389 | Q95: 1019.736604 | S95: 0.3968939371 | T95: 425.6786328 | V95: 1072.524907 | AB95: 1 | AE95: 4150 | AF95: 0.85 | AH95: 169.6622728 | AN95: 1
J96: 85 | L96: 5.945736456 | M96: 592.5658452 | P96: 6.355565071 | Q96: 953.0595694 | S96: 0.4098286152 | T96: 360.4937242 | V96: 879.6206777 | AB96: 1 | AE96: 4200 | AF96: 0.853 | AH96: 254.2491986 | AN96: 1
J97: 86 | L97: 6.07868433 | M97: 614.4157362 | P97: 6.253267056 | Q97: 933.7384567 | S97: 0.1745827255 | T97: 319.3227205 | V97: 1829.062524 | AB97: 0 | AE97: 4250 | AF97: 0.853 | AH97: -57.44863224 | AN97: 0
J98: 87 | L98: 5.977571259 | M98: 536.1543866 | P98: 6.189738708 | Q98: 1117.793958 | S98: 0.21216745 | T98: 581.6395715 | V98: 2741.417553 | AB98: 0 | AE98: 4300 | AF98: 0.855 | AH98: -263.3883966 | AN98: 0
J99: 88 | L99: 6.056738081 | M99: 554.1370232 | P99: 6.328259953 | Q99: 1046.111078 | S99: 0.2715218716 | T99: 491.9740548 | V99: 1811.913169 | AB99: 0 | AE99: 4350 | AF99: 0.856 | AH99: -84.69124747 | AN99: 0
J100: 89 | L100: 5.99745049 | M100: 645.770508 | P100: 6.728536968 | Q100: 981.8815264 | S100: 0.7310864782 | T100: 336.1110184 | V100: 459.7418068 | AB100: 1 | AE100: 4400 | AF100: 0.856 | AH100: 760.5186989 | AN100: 1
J101: 90 | L101: 5.969972754 | M101: 589.002385 | P101: 6.48933992 | Q101: 924.4494446 | S101: 0.5193671665 | T101: 335.4470596 | V101: 645.8765229 | AB101: 1 | AE101: 4450 | AF101: 0.857 | AH101: 443.6036901 | AN101: 1
J102: 91 | L102: 5.944972591 | M102: 627.0622579 | P102: 6.437417217 | Q102: 1085.567517 | S102: 0.4924446259 | T102: 458.5052594 | V102: 931.0798318 | AB102: 1 | AE102: 4500 | AF102: 0.859 | AH102: 280.1616793 | AN102: 1
J103: 92 | L103: 6.038613071 | M103: 693.7060161 | P103: 6.239318077 | Q103: 974.7317194 | S103: 0.2007050056 | T103: 281.0257033 | V103: 1400.192798 | AB103: 1 | AE103: 4550 | AF103: 0.86 | AH103: 20.03180513 | AN103: 1
J104: 93 | L104: 6.08592804 | M104: 673.5156233 | P104: 6.149096962 | Q104: 977.2698012 | S104: 0.06316892242 | T104: 303.7541779 | V104: 4808.601544 | AB104: 0 | AE104: 4600 | AF104: 0.862 | AH104: -209.0007942 | AN104: 0
J105: 94 | L105: 6.061190276 | M105: 497.4034055 | P105: 6.295422737 | Q105: 923.8402502 | S105: 0.234232461 | T105: 426.4368448 | V105: 1820.571081 | AB105: 0 | AE105: 4650 | AF105: 0.863 | AH105: -75.0881533 | AN105: 0
J106: 95 | L106: 5.988241 | M106: 586.9690274 | P106: 6.341376911 | Q106: 958.532837 | S106: 0.353135911 | T106: 371.5638096 | V106: 1052.183587 | AB106: 1 | AE106: 4700 | AF106: 0.863 | AH106: 158.1400569 | AN106: 1
J107: 96 | L107: 6.178518152 | M107: 657.436766 | P107: 6.162169086 | Q107: 984.8608912 | S107: -0.01634906578 | T107: 327.4241252 | V107: -20027.0847 | AB107: 0 | AE107: 4750 | AF107: 0.863 | AH107: -351.9477238 | AN107: 0
J108: 97 | L108: 6.033148918 | M108: 776.1534322 | P108: 6.244249229 | Q108: 953.2477666 | S108: 0.2111003113 | T108: 177.0943345 | V108: 838.9108163 | AB108: 1 | AE108: 4800 | AF108: 0.865 | AH108: 139.5561325 | AN108: 1
J109: 98 | L109: 6.041152272 | M109: 619.9760065 | P109: 6.009002857 | Q109: 901.8684084 | S109: -0.03214941502 | T109: 281.8924019 | V109: -8768.196927 | AB109: 0 | AE109: 4850 | AF109: 0.867 | AH109: -330.1165245 | AN109: 0
J110: 99 | L110: 6.053907042 | M110: 604.0226048 | P110: 6.2171558 | Q110: 1094.878014 | S110: 0.1632487583 | T110: 490.8554092 | V110: 3006.794136 | AB110: 0 | AE110: 4900 | AF110: 0.867 | AH110: -245.9822717 | AN110: 0
J111: 100 | L111: 5.825135312 | M111: 605.0875595 | P111: 6.383523846 | Q111: 936.5529829 | S111: 0.5583885336 | T111: 331.4654234 | V111: 593.610727 | AB111: 1 | AE111: 4950 | AF111: 0.867 | AH111: 506.117377 | AN111: 1
J112: 101 | L112: 6.029430561 | M112: 587.689579 | P112: 6.506636223 | Q112: 888.0083273 | S112: 0.4772056618 | T112: 300.3187483 | V112: 629.3277142 | AB112: 1 | AE112: 5000 | AF112: 0.868 | AH112: 415.4897443 | AN112: 1
J113: 102 | L113: 6.114539714 | M113: 612.2566794 | P113: 6.339549168 | Q113: 938.0583278 | S113: 0.2250094538 | T113: 325.8016484 | V113: 1447.946488 | AB113: 1 | AH113: 11.71253225 | AN113: 1
J114: 103 | L114: 6.045198946 | M114: 636.9343995 | P114: 6.502616993 | Q114: 1059.922293 | S114: 0.457418047 | T114: 422.9878939 | V114: 924.7293514 | AB114: 1 | AH114: 263.1391766 | AN114: 1
J115: 104 | L115: 6.089039245 | M115: 583.4799022 | P115: 6.390903763 | Q115: 949.9357314 | S115: 0.3018645182 | T115: 366.4558292 | V115: 1213.974506 | AB115: 1 | AH115: 86.34094806 | AN115: 1
J116: 105 | L116: 6.177373042 | M116: 562.5613006 | P116: 6.305454964 | Q116: 914.8260175 | S116: 0.1280819216 | T116: 352.264717 | V116: 2750.30787 | AB116: 0 | AH116: -160.1418346 | AN116: 0
J117: 106 | L117: 5.999479027 | M117: 642.2335692 | P117: 6.294669724 | Q117: 946.4545552 | S117: 0.2951906967 | T117: 304.220986 | V117: 1030.591375 | AB117: 1 | AH117: 138.5650591 | AN117: 1
J118: 107 | L118: 6.105484591 | M118: 519.3165126 | P118: 6.256991638 | Q118: 1011.22464 | S118: 0.1515070477 | T118: 491.9081272 | V118: 3246.767295 | AB118: 0 | AH118: -264.6475557 | AN118: 0
J119: 108 | L119: 6.123901653 | M119: 558.6728216 | P119: 6.404345512 | Q119: 902.0064223 | S119: 0.2804438591 | T119: 343.3336007 | V119: 1224.250735 | AB119: 1 | AH119: 77.33218797 | AN119: 1
J120: 109 | L120: 6.072493405 | M120: 592.3056979 | P120: 6.423439671 | Q120: 867.1959125 | S120: 0.3509462652 | T120: 274.8902146 | V120: 783.2829177 | AB120: 1 | AH120: 251.5291833 | AN120: 1
J121: 110 | L121: 6.08175797 | M121: 602.8117875 | P121: 6.231110588 | Q121: 1015.052637 | S121: 0.1493526182 | T121: 412.2408498 | V121: 2760.184955 | AB121: 0 | AH121: -188.2119225 | AN121: 0
J122: 111 | L122: 6.070375361 | M122: 651.0970144 | P122: 6.248086609 | Q122: 919.1775389 | S122: 0.1777112474 | T122: 268.0805245 | V122: 1508.517488 | AB122: 0 | AH122: -1.51365337 | AN122: 0
J123: 112 | L123: 6.087998033 | M123: 605.7637244 | P123: 6.275676647 | Q123: 1002.22291 | S123: 0.1876786146 | T123: 396.4591858 | V123: 2112.43666 | AB123: 0 | AH123: -114.9412639 | AN123: 0
J124: 113 | L124: 6.086670117 | M124: 543.604783 | P124: 6.350543011 | Q124: 908.2674734 | S124: 0.2638728933 | T124: 364.6626903 | V124: 1381.963436 | AB124: 1 | AH124: 31.14664966 | AN124: 1
J125: 114 | L125: 6.090741525 | M125: 631.9218489 | P125: 6.373947483 | Q125: 1001.201671 | S125: 0.2832059584 | T125: 369.2798225 | V125: 1303.926742 | AB125: 1 | AH125: 55.52911506 | AN125: 1
J126: 115 | L126: 6.055694852 | M126: 679.5700881 | P126: 6.360440567 | Q126: 1071.977875 | S126: 0.3047457151 | T126: 392.4077874 | V126: 1287.656455 | AB126: 1 | AH126: 64.71078536 | AN126: 1
J127: 116 | L127: 6.090068226 | M127: 578.4323022 | P127: 6.388736816 | Q127: 993.6358595 | S127: 0.2986685905 | T127: 415.2035573 | V127: 1390.181527 | AB127: 1 | AH127: 32.79932854 | AN127: 1
J128: 117 | L128: 5.956430016 | M128: 516.4259804 | P128: 6.565252945 | Q128: 990.5160737 | S128: 0.6088229294 | T128: 474.0900932 | V128: 778.6994713 | AB128: 1 | AH128: 439.1443008 | AN128: 1
J129: 118 | L129: 6.089470987 | M129: 671.6818354 | P129: 6.276646275 | Q129: 923.3401518 | S129: 0.1871752872 | T129: 251.6583164 | V129: 1344.506105 | AB129: 1 | AH129: 29.10461446 | AN129: 1
J130: 119 | L130: 6.114330502 | M130: 643.964467 | P130: 6.359573952 | Q130: 948.3178219 | S130: 0.2452434502 | T130: 304.3533549 | V130: 1241.025417 | AB130: 1 | AH130: 63.51182032 | AN130: 1
J131: 120 | L131: 6.050882611 | M131: 579.4326537 | P131: 6.492464294 | Q131: 968.4784972 | S131: 0.4415816832 | T131: 389.0458435 | V131: 881.028037 | AB131: 1 | AH131: 273.3266812 | AN131: 1
J132: 121 | L132: 6.013714232 | M132: 594.8272433 | P132: 6.142768818 | Q132: 925.209407 | S132: 0.1290545855 | T132: 330.3821637 | V132: 2560.01879 | AB132: 0 | AH132: -136.8002855 | AN132: 0
J133: 122 | L133: 5.936020694 | M133: 596.708705 | P133: 6.349180511 | Q133: 1034.029525 | S133: 0.4131598177 | T133: 437.3208201 | V133: 1058.478587 | AB133: 1 | AH133: 182.4189064 | AN133: 1
J134: 123 | L134: 5.966286311 | M134: 482.3271422 | P134: 6.306988811 | Q134: 912.2348592 | S134: 0.3407025003 | T134: 429.907717 | V134: 1261.827303 | AB134: 1 | AH134: 81.14603348 | AN134: 1
J135: 124 | L135: 6.112099977 | M135: 559.2982621 | P135: 6.305661762 | Q135: 956.6315779 | S135: 0.1935617857 | T135: 397.3333158 | V135: 2052.746695 | AB135: 0 | AH135: -106.9906373 | AN135: 0
J136: 125 | L136: 6.149352713 | M136: 506.328778 | P136: 6.506288074 | Q136: 960.8991436 | S136: 0.3569353619 | T136: 454.5703656 | V136: 1273.536932 | AB136: 1 | AH136: 80.8326772 | AN136: 1
J137: 126 | L137: 6.055607648 | M137: 582.353467 | P137: 6.283636513 | Q137: 939.3529956 | S137: 0.2280288649 | T137: 356.9995286 | V137: 1565.589202 | AB137: 0 | AH137: -14.95623126 | AN137: 0
J138: 127 | L138: 6.009677458 | M138: 607.5703388 | P138: 6.292095367 | Q138: 976.6700421 | S138: 0.2824179096 | T138: 369.0997032 | V138: 1306.927396 | AB138: 1 | AH138: 54.5271612 | AN138: 1
J139: 128 | L139: 6.01358726 | M139: 664.3874835 | P139: 6.407879318 | Q139: 1023.615278 | S139: 0.394292058 | T139: 359.2277942 | V139: 911.0703271 | AB139: 1 | AH139: 232.2102928 | AN139: 1
J140: 129 | L140: 6.142024803 | M140: 592.9907119 | P140: 6.437720528 | Q140: 960.8025776 | S140: 0.2956957245 | T140: =Q140-M140 -> 367.8118657 | V140: 1243.886317 | AB140: =+IF(S140<0,IF(V140<lambda,0,1),IF(V140<lambda,1,0)) -> 1 | AH140: 75.73172107 | AN140: =+IF(AH140>0,1,0) -> 1
J141: 130 | L141: 6.176477785 | M141: 661.4780104 | P141: 5.962389778 | Q141: 949.2640779 | S141: =P141-L141 -> -0.214088007 | T141: 287.7860676 | V141: =+T141/S141 -> -1344.241892 | AB141: 0 | AH141: =+S141*lambda-T141 -> -608.918078 | AN141: 0
J142: 131 | L142: 6.262989311 | M142: 667.6967158 | P142: 6.445108395 | Q142: 934.4985602 | S142: 0.1821190834 | T142: 266.8018444 | V142: 1464.985653 | AB142: 1 | AH142: 6.37678071 | AN142: 1
J143: 132 | L143: 5.949573903 | M143: 548.1871714 | P143: 6.471897377 | Q143: 1002.669432 | S143: 0.5223234739 | T143: 454.4822608 | V143: 870.1164767 | AB143: 1 | AH143: 329.0029501 | AN143: 1
J144: 133 | L144: 6.19563292 | M144: 630.283423 | P144: 6.537415447 | Q144: 948.0931803 | S144: 0.341782527 | T144: 317.8097573 | V144: 929.8595809 | AB144: 1 | AH144: 194.8640332 | AN144: 1
J145: 134 | L145: 6.150595384 | M145: 491.1631463 | P145: 6.48413755 | Q145: 1061.109084 | S145: 0.3335421667 | T145: 569.9459373 | V145: 1708.767269 | AB145: 0 | AH145: -69.63268723 | AN145: 0
J146: 135 | L146: 6.078549361 | M146: 616.6397861 | P146: 6.368709816 | Q146: 952.0955745 | S146: 0.2901604548 | T146: 335.4557883 | V146: 1156.104434 | AB146: 1 | AH146: 99.78489379 | AN146: 1
J147: 136 | L147: 6.066574836 | M147: 580.8225465 | P147: 6.439826424 | Q147: 1022.733362 | S147: 0.3732515879 | T147: 441.9108159 | V147: 1183.948924 | AB147: 1 | AH147: 117.9665659 | AN147: 1
J148: 137 | L148: 6.098426018 | M148: 606.0850395 | P148: 6.194687199 | Q148: 921.7702459 | S148: 0.09626118088 | T148: 315.6852064 | V148: 3279.465341 | AB148: 0 | AH148: -171.2934351 | AN148: 0
J149: 138 | L149: 5.966719656 | M149: 463.4776955 | P149: 6.280092915 | Q149: 1041.62485 | S149: 0.3133732586 | T149: 578.1471544 | V149: 1844.915412 | AB149: 0 | AH149: -108.0872665 | AN149: 0
J150: 139 | L150: 6.03105588 | M150: 593.7520309 | P150: 6.173848343 | Q150: 926.4854254 | S150: 0.1427924633 | T150: 332.7333945 | V150: 2330.18877 | AB150: 0 | AH150: -118.5446995 | AN150: 0
J151: 140 | L151: 5.973965211 | M151: 519.7347121 | P151: 6.329706821 | Q151: 947.7660425 | S151: 0.3557416105 | T151: 428.0313305 | V151: 1203.208502 | AB151: 1 | AH151: 105.5810853 | AN151: 1
J152: 141 | L152: 5.911435237 | M152: 543.6083321 | P152: 6.266738716 | Q152: 920.8534832 | S152: 0.3553034792 | T152: 377.245151 | V152: 1061.754734 | AB152: 1 | AH152: 155.7100678 | AN152: 1
J153: 142 | L153: 6.176963115 | M153: 594.4313987 | P153: 6.291638042 | Q153: 1047.908905 | S153: 0.1146749277 | T153: 453.4775067 | V153: 3954.460803 | AB153: 0 | AH153: -281.4651151 | AN153: 0
J154: 143 | L154: 6.028582568 | M154: 536.0322333 | P154: 6.184291176 | Q154: 981.5180848 | S154: 0.1557086077 | T154: 445.4858516 | V154: 2861.022638 | AB154: 0 | AH154: -211.9229401 | AN154: 0
J155: 144 | L155: 6.159626589 | M155: 608.7504019 | P155: 6.340237083 | Q155: 1008.106882 | S155: 0.1806104946 | T155: 399.3564801 | V155: 2211.147702 | AB155: 0 | AH155: -128.4407381 | AN155: 0
J156: 145 | L156: 6.124253602 | M156: 546.9863418 | P156: 6.488765244 | Q156: 963.8454257 | S156: 0.3645116415 | T156: 416.8590839 | V156: 1143.609796 | AB156: 1 | AH156: 129.9083784 | AN156: 1
J157: 146 | L157: 6.153799386 | M157: 561.0143129 | P157: 6.208095253 | Q157: 907.1134063 | S157: 0.05429586697 | T157: 346.0990933 | V157: 6374.31747 | AB157: 0 | AH157: -264.6552929 | AN157: 0
J158: 147 | L158: 6.0220121 | M158: 560.8235805 | P158: 6.245507549 | Q158: 994.8873329 | S158: 0.2234954491 | T158: 434.0637524 | V158: 1942.159244 | AB158: 0 | AH158: -98.82057876 | AN158: 0
J159: 148 | L159: 6.088092489 | M159: 635.1319993 | P159: 6.46169548 | Q159: 1005.713368 | S159: 0.3736029911 | T159: 370.581369 | V159: 991.9122113 | AB159: 1 | AH159: 189.8231176 | AN159: 1
J160: 149 | L160: 6.019358873 | M160: 645.5021832 | P160: 6.205605526 | Q160: 965.7524023 | S160: 0.1862466526 | T160: 320.2502191 | V160: 1719.495168 | AB160: 0 | AH160: -40.88024023 | AN160: 0
J161: 150 | L161: 6.062507935 | M161: 602.7063506 | P161: 6.532380733 | Q161: 969.6897542 | S161: 0.4698727989 | T161: 366.9834037 | V161: 781.0271301 | AB161: 1 | AH161: 337.8257947 | AN161: 1
J162: 151 | L162: 5.819930582 | M162: 565.8726629 | P162: 6.463709503 | Q162: 966.2549741 | S162: 0.6437789211 | T162: 400.3823112 | V162: 621.9251641 | AB162: 1 | AH162: 565.2860705 | AN162: 1
J163: 152 | L163: 6.044734888 | M163: 577.9795061 | P163: 6.370949913 | Q163: 949.7449283 | S163: 0.3262150249 | T163: 371.7654222 | V163: 1139.633045 | AB163: 1 | AH163: 117.5571152 | AN163: 1
J164: 153 | L164: 6.087617688 | M164: 523.7790928 | P164: 6.386318775 | Q164: 998.8311185 | S164: 0.298701087 | T164: 475.0520257 | V164: 1590.392692 | AB164: 0 | AH164: -27.00039522 | AN164: 0
J165: 154 | L165: 5.928839741 | M165: 595.1166879 | P165: 6.401247433 | Q165: 962.2026373 | S165: 0.472407692 | T165: 367.0859493 | V165: 777.053286 | AB165: 1 | AH165: 341.5255886 | AN165: 1
J166: 155 | L166: 6.074136934 | M166: 567.0660514 | P166: 6.264045475 | Q166: 1000.778582 | S166: 0.1899085407 | T166: 433.7125309 | V166: 2283.79687 | AB166: 0 | AH166: -148.8497198 | AN166: 0
J167: 156 | L167: 6.063778143 | M167: 595.6907939 | P167: 6.291559666 | Q167: 913.0743278 | S167: 0.2277815228 | T167: 317.3835339 | V167: 1393.368216 | AB167: 1 | AH167: 24.2887502 | AN167: 1
J168: 157 | L168: 6.158432956 | M168: 654.308009 | P168: 6.351760365 | Q168: 1030.712774 | S168: 0.1933274088 | T168: 376.4047654 | V168: 1946.980864 | AB168: 0 | AH168: -86.41365223 | AN168: 0
J169: 158 | L169: 6.018033962 | M169: 504.5413947 | P169: 6.200018738 | Q169: 865.804349 | S169: 0.1819847755 | T169: 361.2629542 | V169: 1985.127345 | AB169: 0 | AH169: -88.28579092 | AN169: 0
J170: 159 | L170: 6.093247566 | M170: 504.8451995 | P170: 6.384869862 | Q170: 916.1180887 | S170: 0.2916222954 | T170: 411.2728892 | V170: 1410.293025 | AB170: 1 | AH170: 26.16055388 | AN170: 1
J171: 160 | L171: 5.998194456 | M171: 620.3070828 | P171: 6.294541637 | Q171: 997.6503911 | S171: 0.2963471813 | T171: 377.3433083 | V171: 1273.31499 | AB171: 1 | AH171: 67.17746366 | AN171: 1
J172: 161 | L172: 6.021059151 | M172: 578.3216187 | P172: 6.187935223 | Q172: 929.0400935 | S172: 0.1668760719 | T172: 350.7184748 | V172: 2101.670244 | AB172: 0 | AH172: -100.404367 | AN172: 0
J173: 162 | L173: 5.918729572 | M173: 524.9720175 | P173: 6.508351673 | Q173: 928.7710716 | S173: 0.5896221008 | T173: 403.7990541 | V173: 684.8438238 | AB173: 1 | AH173: 480.6340971 | AN173: 1
J174: 163 | L174: 5.899517188 | M174: 535.8684672 | P174: 6.235208454 | Q174: 863.8251185 | S174: 0.3356912661 | T174: 327.9566513 | V174: 976.9591421 | AB174: 1 | AH174: 175.5802478 | AN174: 1
J175: 164 | L175: 6.048615065 | M175: 527.0110048 | P175: 6.361859074 | Q175: 999.6483296 | S175: 0.313244009 | T175: 472.6373248 | V175: 1508.847133 | AB175: 0 | AH175: -2.771311317 | AN175: 0
J176: 165 | L176: 6.039947896 | M176: 632.5782205 | P176: 6.419999565 | Q176: 894.8208035 | S176: 0.3800516691 | T176: 262.2425829 | V176: 690.0182376 | AB176: 1 | AH176: 307.8349208 | AN176: 1
J177: 166 | L177: 5.861869903 | M177: 661.1196603 | P177: 6.16248896 | Q177: 882.6087732 | S177: 0.3006190577 | T177: 221.489113 | V177: 736.7766857 | AB177: 1 | AH177: 229.4394735 | AN177: 1
J178: 167 | L178: 5.889658289 | M178: 602.7285044 | P178: 6.330439106 | Q178: 825.1771168 | S178: 0.440780817 | T178: 222.4486124 | V178: 504.6694497 | AB178: 1 | AH178: 438.7226132 | AN178: 1
J179: 168 | L179: 6.040018764 | M179: 594.1676118 | P179: 6.100471455 | Q179: 933.3078795 | S179: 0.06045269108 | T179: 339.1402677 | V179: 5610.011095 | AB179: 0 | AH179: -248.4612311 | AN179: 0
J180: 169 | L180: 6.055257158 | M180: 584.7489144 | P180: 6.357717892 | Q180: 975.4923703 | S180: 0.3024607334 | T180: 390.743456 | V180: 1291.881599 | AB180: 1 | AH180: 62.94764417 | AN180: 1
J181: 170 | L181: 5.923894663 | M181: 613.2421301 | P181: 6.30913488 | Q181: 988.1484434 | S181: 0.3852402172 | T181: 374.9063133 | V181: 973.1754281 | AB181: 1 | AH181: 202.9540125 | AN181: 1
J182: 171 | L182: 6.135952868 | M182: 659.8069128 | P182: 6.503674236 | Q182: 984.1587614 | S182: 0.3677213678 | T182: 324.3518486 | V182: 882.0587461 | AB182: 1 | AH182: 227.2302031 | AN182: 1
J183: 172 | L183: 6.056184859 | M183: 540.7515083 | P183: 6.286686069 | Q183: 953.6759561 | S183: 0.2305012102 | T183: 412.9244478 | V183: 1791.419869 | AB183: 0 | AH183: -67.17263248 | AN183: 0
J184: 173 | L184: 6.090114789 | M184: 587.8643586 | P184: 6.361587158 | Q184: 1001.642356 | S184: 0.2714723692 | T184: 413.7779975 | V184: 1524.199309 | AB184: 0 | AH184: -6.569443671 | AN184: 0
J185: 174 | L185: 5.988034921 | M185: 629.5157172 | P185: 6.315042229 | Q185: 992.7908818 | S185: 0.327007308 | T185: 363.2751646 | V185: 1110.908398 | AB185: 1 | AH185: 127.2357974 | AN185: 1
J186: 175 | L186: 6.224026513 | M186: 547.735785 | P186: 6.4054505 | Q186: 922.0103117 | S186: 0.1814239874 | T186: 374.2745267 | V186: 2062.982586 | AB186: 0 | AH186: -102.1385457 | AN186: 0
J187: 176 | L187: 6.06992734 | M187: 528.5248042 | P187: 6.099447674 | Q187: 903.0839688 | S187: 0.02952033424 | T187: 374.5591646 | V187: 12688.17492 | AB187: 0 | AH187: -330.2786633 | AN187: 0
J188: 177 | L188: 6.02007041 | M188: 540.6267039 | P188: 6.289696377 | Q188: 987.5405201 | S188: 0.269625967 | T188: 446.9138162 | V188: 1657.532548 | AB188: 0 | AH188: -42.47486564 | AN188: 0
J189: 178 | L189: 6.301471915 | M189: 588.4391977 | P189: 6.242757694 | Q189: 969.184518 | S189: -0.058714221 | T189: 380.7453203 | V189: -6484.720632 | AB189: 0 | AH189: -468.8166518 | AN189: 0
J190: 179 | L190: 6.23433239 | M190: 557.4632382 | P190: 6.153614223 | Q190: 937.3843788 | S190: -0.08071816635 | T190: 379.9211406 | V190: -4706.761288 | AB190: 0 | AH190: -500.9983901 | AN190: 0
J191: 180 | L191: 6.196872144 | M191: 613.0102481 | P191: 6.434548855 | Q191: 997.9819458 | S191: 0.2376767111 | T191: 384.9716977 | V191: 1619.728311 | AB191: 0 | AH191: -28.45663108 | AN191: 0
J192: 181 | L192: 6.033337331 | M192: 654.7956564 | P192: 6.173195587 | Q192: 924.6575065 | S192: 0.1398582563 | T192: 269.8618501 | V192: 1929.538214 | AB192: 0 | AH192: -60.07446561 | AN192: 0
J193: 182 | L193: 6.11509923 | M193: 584.2349787 | P193: 6.323241615 | Q193: 915.6140482 | S193: 0.2081423855 | T193: 331.3790696 | V193: 1592.078753 | AB193: 0 | AH193: -19.16549134 | AN193: 0
J194: 183 | L194: 5.993155794 | M194: 687.0927893 | P194: 6.316776276 | Q194: 901.6848021 | S194: 0.3236204815 | T194: 214.5920128 | V194: 663.097749 | AB194: 1 | AH194: 270.8387094 | AN194: 1
J195: 184 | L195: 6.000322642 | M195: 614.8984017 | P195: 6.176989113 | Q195: 944.9952657 | S195: 0.1766664705 | T195: 330.096864 | V195: 1868.47489 | AB195: 0 | AH195: -65.09715822 | AN195: 0
J196: 185 | L196: 5.968823452 | M196: 562.4796725 | P196: 6.313962761 | Q196: 1025.020465 | S196: 0.3451393089 | T196: 462.5407928 | V196: 1340.156803 | AB196: 1 | AH196: 55.16817058 | AN196: 1
J197: 186 | L197: 5.948044672 | M197: 575.2900184 | P197: 6.381901695 | Q197: 1032.258451 | S197: 0.4338570232 | T197: 456.9684325 | V197: 1053.269644 | AB197: 1 | AH197: 193.8171023 | AN197: 1
J198: 187 | L198: 6.066066046 | M198: 587.9018403 | P198: 6.343029514 | Q198: 1033.504606 | S198: 0.2769634686 | T198: 445.6027653 | V198: 1608.886427 | AB198: 0 | AH198: -30.15756248 | AN198: 0
J199: 188 | L199: 6.084270191 | M199: 475.2707876 | P199: 6.230132259 | Q199: 939.9254485 | S199: 0.1458620682 | T199: 464.6546609 | V199: 3185.575707 | AB199: 0 | AH199: -245.8615587 | AN199: 0
J200: 189 | L200: 6.102919168 | M200: 570.0584717 | P200: 6.157246243 | Q200: 1012.174484 | S200: 0.05432707405 | T200: 442.1160125 | V200: 8138.04204 | AB200: 0 | AH200: -360.6254015 | AN200: 0
J201: 190 | L201: 6.096171403 | M201: 527.0920922 | P201: 6.262049633 | Q201: 901.3885906 | S201: 0.1658782301 | T201: 374.2964985 | V201: 2256.453413 | AB201: 0 | AH201: -125.4791533 | AN201: 0
J202: 191 | L202: 6.031417642 | M202: 691.4258696 | P202: 6.385408737 | Q202: 1003.54443 | S202: 0.3539910955 | T202: 312.1185601 | V202: 881.7130261 | AB202: 1 | AH202: 218.8680832 | AN202: 1
J203: 192 | L203: 5.946562591 | M203: 676.5181683 | P203: 6.306921108 | Q203: 971.9000498 | S203: 0.3603585176 | T203: 295.3818815 | V203: 819.6889127 | AB203: 1 | AH203: 245.155895 | AN203: 1
... 808 more rows

Sheet Parametric
A1: Parametric uncertainty analysis
A5: Parametric CEA curve
A6: Threshold | B6: NB | C6: seNB | D6: z | E6: pCE
A8: 0 | B8: =A8*dE-dC -> -366.4679472 | C8: =SQRT((SEdE*A8)^2+(SEdC^2)-(2*A8*covdCdE)) -> 79.05993056 | D8: =B8/C8 -> -4.635318354 | E8: =NORMDIST(D8,0,1,1) -> 1.781942815e-06
A9: 50 | B9: =A9*dE-dC -> -353.8095559 | C9: =SQRT((SEdE*A9)^2+(SEdC^2)-(2*A9*covdCdE)) -> 78.49311451 | D9: =B9/C9 -> -4.50752347 | E9: =NORMDIST(D9,0,1,1) -> 3.279433877e-06
A10: 100 | B10: -341.1511647 | C10: 78.8061549 | D10: -4.328991373 | E10: 7.489690052e-06
A11: 150 | B11: -328.4927734 | C11: 79.98872228 | D11: -4.106738601 | E11: 2.006424586e-05
A12: 200 | B12: -315.8343822 | C12: 82.00320696 | D12: -3.851488179 | E12: 5.870109915e-05
A13: 250 | B13: -303.175991 | C13: 84.79033452 | D13: -3.575596118 | E13: 0.0001747153802
A14: 300 | B14: -290.5175997 | C14: 88.27695238 | D14: -3.290979037 | E14: 0.000499196765
A15: 350 | B15: -277.8592085 | C15: 92.38389704 | D15: -3.007658449 | E15: 0.001316344208
A16: 400 | B16: -265.2008173 | C16: 97.03243355 | D16: -2.733115182 | E16: 0.003136919406
A17: 450 | B17: -252.542426 | C17: 102.1486491 | D17: -2.472303142 | E17: 0.006712281349
A18: 500 | B18: -239.8840348 | C18: 107.6658928 | D18: -2.228041105 | E18: 0.01293888702
A19: 550 | B19: -227.2256435 | C19: 113.525711 | D19: -2.001534644 | E19: 0.02266740207
A20: 600 | B20: -214.5672523 | C20: 119.6777935 | D20: -1.792874401 | E20: 0.03649650469
A21: 650 | B21: -201.9088611 | C21: 126.0793641 | D21: -1.601442571 | E21: 0.0546394651
A22: 700 | B22: -189.2504698 | C22: 132.6943198 | D22: -1.426213799 | E22: 0.07690331892
A23: 750 | B23: -176.5920786 | C23: 139.4923064 | D23: -1.265962856 | E23: 0.1027631904
A24: 800 | B24: -163.9336874 | C24: 146.4478379 | D24: -1.119399847 | E24: 0.131484798
A25: 850 | B25: -151.2752961 | C25: 153.5395047 | D25: -0.9852532508 | E25: 0.1622498448
A26: 900 | B26: -138.6169049 | C26: 160.7492905 | D26: -0.8623173666 | E26: 0.1942564493
A27: 950 | B27: -125.9585136 | C27: 168.0619943 | D27: -0.7494764904 | E27: 0.2267850317
A28: 1000 | B28: -113.3001224 | C28: 175.4647488 | D28: -0.6457144424 | E28: 0.2592321528
A29: 1050 | B29: -100.6417312 | C29: 182.9466229 | D29: -0.5501152719 | E29: 0.2911201563
A30: 1100 | B30: -87.98333993 | C30: 190.4982944 | D30: -0.4618589378 | E30: 0.3220912411
A31: 1150 | B31: -75.32494869 | C31: 198.111782 | D31: -0.3802143816 | E31: 0.3518931422
A32: 1200 | B32: -62.66655746 | C32: 205.7802245 | D32: -0.3045314856 | E32: 0.3803615045
A33: 1250 | B33: -50.00816622 | C33: 213.4977002 | D33: -0.2342328098 | E33: 0.4074021224
A34: 1300 | B34: -37.34977498 | C34: 221.2590786 | D34: -0.1688056157 | E34: 0.4329747705
A35: 1350 | B35: -24.69138374 | C35: 229.0598968 | D35: -0.107794442 | E35: 0.4570793759
A36: 1400 | B36: -12.03299251 | C36: 236.8962587 | D36: -0.05079435435 | E36: 0.4797446948
A37: 1450 | B37: 0.6253987298 | C37: 244.7647505 | D37: 0.00255510129 | E37: 0.5010193368
A38: 1500 | B38: 13.28378997 | C38: 252.6623703 | D38: 0.05257526061 | E38: 0.5209648356
A39: 1550 | B39: 25.9421812 | C39: 260.5864699 | D39: 0.09955306279 | E39: 0.5396504205
A40: 1600 | B40: 38.60057244 | C40: 268.5347051 | D40: 0.1437451909 | E40: 0.5571491577
A41: 1650 | B41: 51.25896368 | C41: 276.5049946 | D41: 0.1853816918 | E41: 0.5735351663
A42: 1700 | B42: 63.91735492 | C42: 284.4954847 | D42: 0.2246691366 | E42: 0.5888816619
A43: 1750 | B43: 76.57574615 | C43: 292.50452 | D43: 0.2617933773 | E43: 0.6032596274
A44: 1800 | B44: 89.23413739 | C44: 300.5306178 | D44: 0.2969219511 | E44: 0.6167369515
A45: 1850 | B45: 101.8925286 | C45: 308.5724467 | D45: 0.3302061792 | E45: 0.6293779109
A46: 1900 | B46: 114.5509199 | C46: 316.6288081 | D46: 0.3617829994 | E46: 0.6412429013
A47: 1950 | B47: 127.2093111 | C47: 324.6986202 | D47: 0.3917765681 | E47: 0.6523883451
A48: 2000 | B48: 139.8677023 | C48: 332.7809046 | D48: 0.4202996639 | E48: 0.6628667223
A49: 2050 | B49: 152.5260936 | C49: 340.874774 | D49: 0.4474549166 | E49: 0.6727266839
A50: 2100 | B50: 165.1844848 | C50: 348.9794224 | D50: 0.473335888 | E50: 0.682013219
A51: 2150 | B51: 177.8428761 | C51: 357.0941159 | D51: 0.4980280216 | E51: 0.6907678541
A52: 2200 | B52: 190.5012673 | C52: 365.2181849 | D52: 0.5216094794 | E52: 0.6990288691
A53: 2250 | B53: 203.1596585 | C53: 373.3510173 | D53: 0.5441518815 | E53: 0.7068315195
A54: 2300 | B54: 215.8180498 | C54: 381.4920528 | D54: 0.5657209585 | E54: 0.7142082573
A55: 2350 | B55: 228.476441 | C55: 389.640777 | D55: 0.5863771311 | E55: 0.7211889456
A56: 2400 | B56: 241.1348322 | C56: 397.7967176 | D56: 0.606176023 | E56: 0.7278010636
A57: 2450 | B57: 253.7932235 | C57: 405.9594396 | D57: 0.6251689177 | E57: 0.7340699002
A58: 2500 | B58: 266.4516147 | C58: 414.1285419 | D58: 0.6434031653 | E58: 0.7400187349
A59: 2550 | B59: 279.1100059 | C59: 422.3036544 | D59: 0.6609225448 | E59: 0.7456690064
A60: 2600 | B60: 291.7683972 | C60: 430.4844346 | D60: 0.6777675887 | E60: 0.7510404678
A61: 2650 | B61: 304.4267884 | C61: 438.6705654 | D61: 0.6939758727 | E61: 0.75615133
A62: 2700 | B62: 317.0851797 | C62: 446.8617527 | D62: 0.7095822762 | E62: 0.7610183931
A63: 2750 | B63: 329.7435709 | C63: 455.0577236 | D63: 0.724619216 | E63: 0.7656571665
A64: 2800 | B64: 342.4019621 | C64: 463.2582241 | D64: 0.7391168561 | E64: 0.7700819789
A65: 2850 | B65: 355.0603534 | C65: 471.4630178 | D65: 0.7531032975 | E65: 0.7743060785
A66: 2900 | B66: 367.7187446 | C66: 479.6718845 | D66: 0.766604749 | E66: 0.7783417245
A67: 2950 | B67: 380.3771358 | C67: 487.8846185 | D67: 0.7796456814 | E67: 0.7822002703
A68: 3000 | B68: 393.0355271 | C68: 496.1010278 | D68: 0.7922489676 | E68: 0.7858922393
A69: 3050 | B69: 405.6939183 | C69: 504.3209328 | D69: 0.8044360088 | E69: 0.7894273939
A70: 3100 | B70: 418.3523096 | C70: 512.5441652 | D70: 0.8162268502 | E70: 0.7928147986
A71: 3150 | B71: 431.0107008 | C71: 520.7705675 | D71: 0.8276402848 | E71: 0.7960628766
A72: 3200 | B72: 443.669092 | C72: 528.9999918 | D72: 0.8386939488 | E72: =NORMDIST(D72,0,1,1) -> 0.7991794626
A73: 3250 | B73: =A73*dE-dC -> 456.3274833 | C73: =SQRT((SEdE*A73)^2+(SEdC^2)-(2*A73*covdCdE)) -> 537.2322991 | D73: =B73/C73 -> 0.8494044085 | E73: 0.8021718495
A74: 3300 | B74: 468.9858745 | C74: 545.467359 | D74: 0.8597872389 | E74: 0.8050468325
A75: 3350 | B75: 481.6442657 | C75: 553.7050487 | D75: 0.8698570961 | E75: 0.8078107478
A76: 3400 | B76: 494.302657 | C76: 561.9452524 | D76: 0.8796277838 | E76: 0.8104695088
A77: 3450 | B77: 506.9610482 | C77: 570.1878612 | D77: 0.8891123132 | E77: 0.813028639
A78: 3500 | B78: 519.6194395 | C78: 578.4327723 | D78: 0.8983229588 | E78: 0.815493302
A79: 3550 | B79: 532.2778307 | C79: 586.6798886 | D79: 0.9072713093 | E79: 0.8178683288
A80: 3600 | B80: 544.9362219 | C80: 594.9291184 | D80: 0.9159683147 | E80: 0.820158243
A81: 3650 | B81: 557.5946132 | C81: 603.180375 | D81: 0.9244243286 | E81: 0.8223672835
A82: 3700 | B82: 570.2530044 | C82: 611.4335763 | D82: 0.9326491486 | E82: 0.8244994259
A83: 3750 | B83: 582.9113956 | C83: 619.6886447 | D83: 0.9406520527 | E83: 0.8265584012
A84: 3800 | B84: 595.5697869 | C84: 627.9455065 | D84: 0.9484418326 | E84: 0.8285477142
A85: 3850 | B85: 608.2281781 | C85: 636.2040918 | D85: 0.9560268253 | E85: 0.830470659
A86: 3900 | B86: 620.8865694 | C86: 644.4643344 | D86: 0.963414942 | E86: 0.8323303346
A87: 3950 | B87: 633.5449606 | C87: 652.7261715 | D87: 0.9706136942 | E87: 0.834129658
A88: 4000 | B88: 646.2033518 | C88: 660.9895431 | D88: 0.9776302191 | E88: 0.8358713771
A89: 4050 | B89: 658.8617431 | C89: 669.2543925 | D89: 0.9844713019 | E89: 0.8375580824
A90: 4100 | B90: 671.5201343 | C90: 677.5206656 | D90: 0.9911433974 | E90: 0.8391922176
A91: 4150 | B91: 684.1785255 | C91: 685.7883109 | D91: 0.9976526498 | E91: 0.8407760894
A92: 4200 | B92: 696.8369168 | C92: 694.0572793 | D92: 1.004004911 | E92: 0.8423118767
A93: 4250 | B93: 709.495308 | C93: 702.3275242 | D93: 1.010205757 | E93: 0.8438016391
A94: 4300 | B94: 722.1536993 | C94: 710.5990009 | D94: 1.016260505 | E94: 0.8452473245
A95: 4350 | B95: 734.8120905 | C95: 718.871667 | D95: 1.022174227 | E95: 0.8466507766
A96: 4400 | B96: 747.4704817 | C96: 727.1454818 | D96: 1.027951765 | E96: 0.8480137412
A97: 4450 | B97: 760.128873 | C97: 735.4204066 | D97: 1.033597744 | E97: 0.8493378727
A98: 4500 | B98: 772.7872642 | C98: 743.6964043 | D98: 1.03911658 | E98: 0.8506247396
A99: 4550 | B99: 785.4456554 | C99: 751.9734396 | D99: 1.044512498 | E99: 0.8518758299
A100: 4600 | B100: 798.1040467 | C100: 760.2514784 | D100: 1.049789536 | E100: 0.8530925563
A101: 4650 | B101: 810.7624379 | C101: 768.5304884 | D101: 1.05495156 | E101: 0.8542762604
A102: 4700 | B102: 823.4208292 | C102: 776.8104385 | D102: 1.060002271 | E102: 0.855428217
A103: 4750 | B103: 836.0792204 | C103: 785.0912991 | D103: 1.064945213 | E103: 0.8565496383
A104: 4800 | B104: 848.7376116 | C104: 793.3730415 | D104: 1.06978378 | E104: 0.8576416777
A105: 4850 | B105: 861.3960029 | C105: 801.6556384 | D105: 1.07452123 | E105: 0.8587054326
A106: 4900 | B106: 874.0543941 | C106: 809.9390637 | D106: 1.079160684 | E106: 0.8597419486
A107: 4950 | B107: 886.7127853 | C107: 818.2232921 | D107: 1.083705138 | E107: 0.8607522215
A108: 5000 | B108: =A108*dE-dC -> 899.3711766 | C108: 826.5082996 | D108: =B108/C108 -> 1.088157466 | E108: =NORMDIST(D108,0,1,1) -> 0.8617372008
